bitfinex/quotes_ETHUSD_20260207
["timestamp","ask_amount","ask_price","bid_price","bid_amount"]
[1770477662294,2.25611445,2042.5,2041.3,2.75566205]
[1770477662601,0.006,2042.4,2041.4,1.52313072]
[1770477662759,0.006,2042.6,2041.7,7.28877969]
[1770477662957,2.26211445,2042.6,2041.8,0.72887797]
[1770477663270,2.26211445,2042.6,2041.4,8.80417078]
[1770477663605,0.002,2042.7,2042.3,7.28877969]
[1770477663756,4.89123595,2044.5,2042.6,7.28877969]
[1770477663757,2.26211445,2043.6,2042.6,7.28877969]
[1770477663954,2.26211445,2043.5,2042.6,7.28877969]
[1770477664170,2.25611445,2043.5,2042.6,7.28877969]
[1770477664501,0.006,2043.4,2042.6,7.28877969]
[1770477664783,0.006,2043.6,2042.9,7.28877969]
[1770477664981,0.006,2043.6,2042.6,9.79638267]
[1770477665488,2.31025897,2043.4,2042.3,1.22406825]
[1770477665798,2.31025897,2043.4,2042.0,7.28877969]
[1770477665799,2.31025897,2043.1,2042.1,4.89644028]
[1770477666159,2.28137382,2043.0,2042.1,4.89644028]
[1770477666377,2.28137382,2043.0,2042.0,1.22428744]
[1770477666570,2.32951834,2042.8,2042.0,1.22428744]
[1770477666867,2.27537382,2042.8,2042.0,1.22428005]
[1770477667192,2.27537382,2042.8,2042.0,1.83642402]
[1770477669060,0.05414452,2043.4,2042.0,1.83642402]
[1770477669061,0.05414452,2043.4,2042.0,9.12520371]
[1770477669365,0.0079314,2043.8,2043.0,7.28877969]
[1770477670299,0.0079314,2043.8,2043.6,7.28877969]
[1770477670589,1.22258515,2044.9,2043.8,1.22321166]
[1770477670793,1.55268932,2045.5,2044.3,7.28877969]
[1770477670991,1.55268932,2045.5,2044.0,2.21101007]
[1770477670992,0.05414452,2045.1,2044.0,7.28877969]
[1770477671294,0.05414452,2045.0,2043.7,1.95213381]
[1770477671494,2.24093249,2044.9,2043.6,1.22332411]
[1770477671669,2.24093249,2044.9,2043.7,1.22321913]
[1770477672300,0.05414452,2044.8,2043.7,1.22321913]
[1770477672467,2.24093249,2044.4,2043.7,1.22326558]
[1770477672798,2.24093249,2044.7,2043.6,4.89317152]
[1770477673103,0.34635459,2044.6,2043.8,7.28877969]
[1770477673284,3.46339711,2045.1,2043.8,7.28877969]
[1770477673993,2.24093249,2045.1,2043.8,7.28877969]
[1770477674172,1.22238989,2045.2,2043.8,9.49978976]
[1770477674376,2.24093249,2045.2,2043.8,7.28877969]
[1770477674599,2.24093249,2045.2,2044.1,7.28877969]
[1770477674769,3.79362797,2045.5,2044.2,0.6611949]
[1770477675303,2.29507701,2045.1,2043.7,1.34052826]
[1770477675465,2.29507701,2045.1,2043.8,1.22318218]
[1770477675674,2.24093249,2045.1,2044.0,7.28877969]
[1770477675870,0.33045617,2045.5,2044.6,7.28877969]
[1770477676101,1e-08,2045.5,2044.9,7.28877969]
[1770477676286,1e-08,2045.5,2044.6,7.28877969]
[1770477676598,0.002,2045.0,2044.4,1.22285267]
[1770477676900,0.002,2045.2,2044.9,7.28877969]
[1770477677101,1e-08,2045.5,2045.1,0.05414452]
[1770477677327,1.47666562,2047.5,2045.6,2.21101007]
[1770477677473,1.46391379,2049.4,2047.2,7.28877969]
[1770477677474,2.33305168,2048.8,2047.2,7.28877969]
[1770477677675,2.33305168,2048.8,2047.9,0.05414452]
[1770477677676,0.09211919,2048.8,2047.9,0.05414452]
[1770477677882,0.00418184,2048.8,2048.7,0.05414452]
[1770477678085,0.00418184,2048.8,2048.5,7.28877969]
[1770477678393,1.22441146,2048.8,2047.7,7.28877969]
[1770477678608,0.00418184,2048.8,2047.7,7.28877969]
[1770477678889,0.00418184,2048.8,2047.1,0.05414452]
[1770477678890,2.24511433,2048.8,2047.1,0.05414452]
[1770477679094,0.00418184,2048.8,2047.9,7.28877969]
[1770477679291,0.00418184,2048.8,2047.7,1.27498036]
[1770477679470,0.00418184,2048.8,2048.0,0.05414452]
[1770477679805,0.00418184,2048.8,2047.8,1.22082068]
[1770477680311,0.00418184,2048.8,2048.3,0.05414452]
[1770477680613,0.00418184,2048.8,2047.9,1.22074592]
[1770477680898,0.00418184,2048.8,2047.8,0.05414452]
[1770477681303,0.00418184,2048.8,2047.2,7.35264845]
[1770477681510,0.00418184,2048.8,2047.7,0.05414452]
[1770477681874,0.00418184,2048.8,2047.4,0.05414452]
[1770477682070,0.00418184,2048.8,2047.6,0.05414452]
[1770477682270,0.00418184,2048.8,2047.9,0.05414452]
[1770477682476,0.00418184,2048.8,2047.4,0.05414452]
[1770477682678,0.00418184,2048.8,2047.3,0.05414452]
[1770477682679,2.24511433,2048.8,2047.3,0.05414452]
[1770477682978,2.24511433,2048.8,2046.9,0.25544434]
[1770477682979,2.24093249,2048.0,2046.9,0.25544434]
[1770477683182,0.45994569,2048.7,2047.5,0.05414452]
[1770477683183,2.24093249,2048.7,2047.5,0.05414452]
[1770477683481,2.24093249,2048.7,2046.7,1.80637613]
[1770477683482,2.24093249,2048.7,2047.0,7.35264845]
[1770477683800,2.24093249,2048.7,2047.5,0.05414452]
[1770477683988,2.19093249,2048.7,2047.1,0.05414452]
[1770477684310,2.19093249,2048.7,2046.9,1.22130734]
[1770477684475,2.19093249,2048.7,2046.8,1.22137676]
[1770477684678,2.24093249,2048.4,2046.6,7.35264845]
[1770477685015,2.24093249,2048.2,2046.7,0.73526485]
[1770477685314,0.95935809,2048.3,2046.2,7.35264845]
[1770477685315,2.24093249,2048.0,2046.2,7.35264845]
[1770477685618,2.24093249,2048.0,2046.4,1.22165739]
[1770477685977,2.24093249,2048.0,2046.3,1.22167414]
[1770477686198,2.24093249,2048.0,2046.2,1.22176968]
[1770477686397,2.24093249,2047.8,2046.3,1.2217135]
[1770477687022,2.24093249,2047.6,2046.0,0.05414452]
[1770477687192,2.24093249,2047.6,2046.2,1.22176237]
[1770477687390,2.24093249,2047.6,2045.8,7.35264845]
[1770477687711,2.24093249,2047.4,2046.0,1.27602272]
[1770477688009,2.24093249,2047.4,2045.9,0.7406793]
[1770477688308,2.24093249,2047.4,2045.6,4.63908384]
[1770477688524,2.24093249,2047.4,2045.7,1.22207514]
[1770477688701,2.24093249,2047.4,2045.7,1.2220372]
[1770477689005,1.2211205,2047.3,2046.3,1.22170664]
[1770477689311,0.34618145,2047.5,2046.8,0.05414452]
[1770477689531,1.22088178,2047.8,2046.8,0.05414452]
[1770477689882,1.22088178,2047.8,2046.6,7.35364845]
[1770477690087,2.24093249,2047.7,2046.6,0.001]
[1770477690287,1.22088178,2047.8,2046.7,0.05414452]
[1770477690489,2.24093249,2048.0,2046.6,7.35364845]
[1770477690692,2.58709009,2047.9,2046.7,0.05414452]
[1770477690985,2.24093249,2047.7,2046.7,0.05414452]
[1770477691235,2.24093249,2047.7,2046.6,0.001]
[1770477691715,2.24093249,2047.7,2046.4,0.001]
[1770477691918,2.24093249,2047.7,2043.7,1.66514739]
[1770477691919,2.24093249,2047.0,2045.1,8.57506258]
[1770477692085,2.24093249,2046.8,2045.3,4.88918276]
[1770477692410,2.24093249,2046.8,2045.3,1.22228236]
[1770477692618,2.24093249,2046.8,2045.2,1.27649108]
[1770477692820,2.24093249,2046.8,2045.5,0.05414452]
[1770477693116,7.12573702,2047.2,2045.9,0.05414452]
[1770477693325,0.83469172,2047.1,2045.6,1.2220784]
[1770477693525,2.24093249,2047.0,2045.6,1.27622292]
[1770477694024,0.83469172,2047.1,2046.2,0.05414452]
[1770477694230,1.22110435,2047.4,2046.5,0.05414452]
[1770477694619,1.22110435,2047.4,2045.9,0.05414452]
[1770477694832,2.24093249,2047.3,2045.7,0.05414452]
[1770477695124,2.24093249,2047.1,2045.7,1.22203634]
[1770477695312,2.24093249,2047.1,2045.7,1.27618086]
[1770477695516,2.58714375,2047.0,2045.7,1.83849175]
[1770477695716,2.58714375,2047.0,2045.7,1.22203634]
[1770477696021,2.58714375,2047.0,2045.7,1.22206655]
[1770477696325,2.58714375,2047.0,2045.4,4.88899125]
[1770477696513,2.58714375,2047.0,2045.5,1.22216584]
[1770477696703,2.47295132,2046.9,2045.7,1.22205945]
[1770477696902,1.2214188,2046.8,2045.7,1.22205945]
[1770477697502,0.34621126,2047.0,2046.1,0.05414452]
[1770477697806,2.21423694,2047.8,2046.2,0.05414452]
[1770477697807,2.21423694,2047.6,2046.2,0.05414452]
[1770477698124,1.22088196,2047.7,2046.0,0.05414452]
[1770477698125,2.21423694,2047.4,2046.0,0.05414452]
[1770477698311,2.21423694,2047.4,2046.3,0.05414452]
[1770477698827,3.4351189,2047.7,2046.6,0.05414452]
[1770477699020,2.05285728,2047.6,2046.7,1.22147847]
[1770477699623,2.05281173,2047.6,2046.7,1.22147847]
[1770477699920,2.05280849,2047.6,2046.7,1.22147847]
[1770477700230,4.26704543,2047.6,2046.2,1.27588385]
[1770477700433,2.21423694,2047.5,2045.9,0.05414452]
[1770477700614,0.91505794,2047.5,2046.6,1.2756733]
[1770477701123,1.22106085,2047.4,2046.5,1.22155228]
[1770477701309,1.22106085,2047.4,2046.4,1.22163894]
[1770477701514,1.56696675,2047.9,2047.0,0.05414452]
[1770477701816,0.64500177,2047.8,2047.0,0.05414452]
[1770477702026,1.56696675,2047.9,2047.0,0.05414452]
[1770477702027,1.5669327,2047.9,2047.0,0.05414452]
[1770477702219,1.5669327,2047.9,2046.8,0.05414452]
[1770477702534,1.56692838,2047.9,2047.1,0.05414452]
[1770477702704,1.566924,2047.9,2047.1,0.05414452]
[1770477703230,0.002,2047.3,2047.2,1.22118014]
[1770477703930,0.002,2047.3,2046.6,0.05414452]
[1770477704224,0.002,2047.3,2046.5,1.22158224]
[1770477704427,0.002,2047.3,2046.5,1.22156035]
[1770477704610,0.002,2047.3,2046.2,4.88705014]
[1770477704808,0.002,2047.3,2046.3,0.48870501]
[1770477705002,0.002,2047.3,2046.3,1.22168823]
[1770477705202,1.2231205,2047.3,2046.1,4.88710987]
[1770477705439,3.43735744,2047.3,2046.1,1.22183666]
[1770477705608,3.43735744,2047.3,2046.2,0.05414452]
[1770477705808,3.43735744,2047.3,2046.1,1.22183666]
[1770477706019,0.83218394,2047.2,2046.3,0.05414452]
[1770477706224,0.002,2047.3,2046.3,0.05414452]
[1770477706225,0.002,2047.3,2046.6,0.05414452]
[1770477706621,0.002,2047.3,2046.9,0.05414452]
[1770477706918,0.3461576,2047.9,2047.2,0.05414452]
[1770477707231,4.98356743,2048.7,2047.6,0.05414452]
[1770477707232,2.21423694,2048.7,2047.6,0.05414452]
[1770477707539,7.09543237,2048.7,2047.3,1.2211205]
[1770477707703,1.22446787,2048.8,2047.7,0.05414452]
[1770477707704,0.00418184,2048.8,2047.7,0.05414452]
[1770477707907,1.2244151,2048.8,2047.5,0.05414452]
[1770477708104,1.2244151,2048.8,2047.8,0.05414452]
[1770477708308,1.2244151,2048.8,2047.2,1.22116911]
[1770477708309,2.21423694,2048.6,2047.2,1.22116911]
[1770477708542,2.21423694,2048.6,2047.2,1.27531363]
[1770477709327,1.22040517,2048.5,2047.2,1.27531363]
[1770477709722,2.21423694,2048.4,2046.8,7.35264845]
[1770477709927,2.21423694,2048.2,2046.9,0.05414452]
[1770477710122,2.21423694,2048.2,2046.7,4.88581842]
[1770477710353,2.21423694,2048.2,2046.8,1.22138977]
[1770477710645,2.21423694,2048.2,2047.0,1.22124989]
[1770477710827,0.25577012,2048.1,2047.1,1.27534137]
[1770477711017,0.25577012,2048.1,2047.2,1.22117247]
[1770477711352,0.25577012,2048.1,2046.8,0.05414452]
[1770477711547,1.47645574,2048.1,2046.9,4.93951467]
[1770477713039,1.47645574,2048.1,2046.9,4.88537015]
[1770477713222,0.85732668,2048.0,2047.0,0.61608738]
[1770477713424,0.85732668,2048.0,2047.1,0.05414452]
[1770477713625,1.22076273,2047.9,2047.2,1.22118014]
[1770477713817,1.22076273,2047.9,2047.1,1.27533863]
[1770477714012,1.94243132,2047.9,2046.9,1.22133792]
[1770477714223,1.94243132,2047.9,2046.9,1.22133005]
[1770477714419,0.25577012,2048.1,2047.4,0.05414452]
[1770477714620,0.32835366,2048.7,2047.1,1.22121742]
[1770477714621,2.21423694,2048.6,2047.1,1.22121742]
[1770477714834,2.21423694,2048.6,2047.2,0.05414452]
[1770477715025,2.59052818,2048.5,2047.1,1.27538189]
[1770477715227,2.59052818,2048.5,2047.0,1.22126219]
[1770477715536,2.59052818,2048.5,2046.8,4.88550441]
[1770477715720,2.59052818,2048.5,2046.7,1.22147847]
[1770477715721,2.21423694,2048.3,2046.7,1.22147847]
[1770477715923,2.21423694,2048.3,2046.9,0.05414452]
[1770477716123,2.55770711,2048.2,2046.7,1.22147847]
[1770477716324,2.21423694,2047.9,2045.9,0.001]
[1770477716534,2.21423694,2047.5,2045.9,0.001]
[1770477716936,2.21423694,2047.5,2046.9,0.001]
[1770477717118,2.21423694,2047.5,2046.0,1.22187305]
[1770477717319,2.21423694,2047.5,2046.0,0.61647502]
[1770477717841,2.21423694,2047.3,2046.0,0.001]
[1770477718531,4.88424343,2047.6,2046.2,0.05414452]
[1770477718532,2.21423694,2047.6,2046.2,0.05414452]
[1770477718952,2.21423694,2047.6,2046.0,0.001]
[1770477719322,2.21423694,2047.6,2046.1,0.05414452]
[1770477719657,0.002,2047.9,2046.7,0.05414452]
[1770477719952,0.002,2047.9,2046.8,0.05414452]
[1770477719953,0.83397822,2047.9,2046.8,0.05414452]
[1770477720115,0.83397822,2047.9,2047.1,0.05414452]
[1770477720317,1.22037535,2048.6,2047.2,7.40679297]
[1770477720546,1.22037535,2048.6,2047.5,0.05414452]
[1770477720744,1.22037535,2048.6,2047.2,7.40679297]
[1770477720928,1.54864394,2048.7,2047.6,0.05414452]
[1770477721134,1.54864394,2048.7,2047.2,0.05414452]
[1770477721336,0.64339699,2048.6,2047.7,0.05414452]
[1770477721632,1.22040517,2048.5,2047.3,0.05414452]
[1770477722753,1.22040517,2048.5,2046.5,1.22155871]
[1770477722754,2.21423694,2048.4,2046.5,1.22155871]
[1770477722933,2.21423694,2048.0,2046.3,1.22168341]
[1770477723133,2.21423694,2048.0,2046.4,1.27577273]
[1770477723521,2.21423694,2047.6,2046.0,0.001]
[1770477723726,2.21423694,2047.0,2046.0,0.001]
[1770477724153,2.21423694,2047.0,2045.2,0.05414452]
[1770477724154,2.21423694,2046.8,2045.0,1.2224767]
[1770477724454,2.21423694,2046.8,2045.0,4.88980322]
[1770477724750,2.21423694,2046.2,2044.3,0.05414452]
[1770477724920,2.21423694,2046.2,2044.7,1.22263477]
[1770477725126,2.21423694,2046.2,2044.0,1.75938222]
[1770477725376,2.21423694,2046.0,2044.4,0.05414452]
[1770477725530,2.21423694,2046.0,2044.8,1.2226033]
[1770477725733,1.2219561,2045.9,2044.4,1.27699719]
[1770477725926,0.83240175,2045.8,2044.5,1.35211612]
[1770477726135,2.12004692,2045.7,2044.5,1.35211612]
[1770477726336,2.12004692,2045.7,2044.3,1.22291118]
[1770477726541,2.12004692,2045.7,2044.2,1.22296618]
[1770477726865,2.12004692,2045.7,2043.9,7.35264845]
[1770477726866,2.12004692,2045.6,2044.1,1.22301833]
[1770477727033,1.2219561,2045.9,2044.4,7.40679297]
[1770477727353,1.2219561,2045.9,2044.2,4.89182891]
[1770477727354,2.12004692,2045.7,2044.2,1.22295777]
[1770477727560,2.12004692,2045.7,2044.6,0.05414452]
[1770477727721,1.22213531,2045.6,2044.5,1.22275318]
[1770477728246,1.22213531,2045.6,2044.3,1.22286327]
[1770477728427,1.22213531,2045.6,2044.6,1.22272661]
[1770477728627,0.82307235,2045.5,2044.2,0.05414452]
[1770477728854,5.49904486,2045.8,2044.6,1.22273239]
[1770477728855,0.61097805,2045.8,2044.6,1.22273239]
[1770477729025,1.22205304,2045.8,2044.8,0.05414452]
[1770477729731,2.22244692,2046.0,2044.5,1.22276012]
[1770477729935,2.12004692,2046.0,2044.5,1.22278793]
[1770477730134,2.12004692,2046.0,2044.8,1.22261335]
[1770477730336,2.12004692,2046.0,2044.6,0.001]
[1770477730539,0.33418836,2045.9,2044.7,1.22265276]
[1770477730736,0.33418836,2045.9,2044.7,1.22266356]
[1770477731152,0.33418836,2045.9,2044.8,1.22258484]
[1770477731540,2.54913836,2045.9,2044.6,1.22369553]
[1770477731740,1.22201583,2045.8,2044.6,0.001]
[1770477731972,0.86592175,2045.7,2044.6,0.001]
[1770477732371,2.21495,2045.6,2044.6,0.001]
[1770477734040,1.22219506,2045.5,2044.6,0.001]
[1770477734238,2.21495,2045.4,2044.6,0.001]
[1770477734670,5.75441963,2045.7,2044.9,0.05414452]
[1770477734671,0.86592175,2045.7,2044.9,0.05414452]
[1770477734871,1.22165754,2046.4,2045.3,0.05414452]
[1770477735071,0.83232115,2046.3,2045.7,0.05414452]
[1770477735276,0.83232115,2046.3,2045.3,0.7406793]
[1770477735442,0.83232115,2046.3,2044.8,7.35264845]
[1770477735641,0.83232115,2046.3,2045.1,0.05414452]
[1770477735841,0.83232115,2046.3,2045.4,0.05414452]
[1770477736070,2.21495,2046.9,2045.0,1.22249388]
[1770477737476,2.21495,2046.7,2045.0,1.22249388]
[1770477737672,2.21495,2046.7,2045.2,0.05414452]
[1770477738171,1.22153816,2046.6,2045.3,1.22231457]
[1770477739793,2.21495,2046.5,2045.3,1.22231457]
[1770477739943,2.55859882,2046.4,2045.1,1.22242648]
[1770477740146,1.22171724,2046.3,2044.9,1.22255367]
[1770477740346,2.21495,2046.2,2044.8,1.2225975]
[1770477740796,2.21495,2046.2,2044.7,1.22262429]
[1770477740949,2.21495,2046.2,2044.6,0.001]
[1770477740950,2.21495,2046.1,2044.6,0.001]
[1770477741271,2.55861672,2046.1,2044.8,1.22260955]
[1770477741654,2.55861672,2046.1,2044.7,1.22262876]
[1770477741858,2.55861672,2046.1,2044.6,5.38116029]
[1770477741859,2.21495,2045.8,2044.6,0.001]
[1770477742178,2.18130673,2045.7,2044.6,0.001]
[1770477742381,1.22210418,2045.7,2044.6,0.001]
[1770477743673,1.22189638,2046.0,2044.6,0.001]
[1770477743984,0.002,2045.7,2044.6,0.05514452]
[1770477744353,0.002,2045.7,2044.6,1.22373305]
[1770477744546,0.002,2045.7,2044.7,1.34917408]
[1770477744883,2.21695,2048.1,2046.4,0.05414452]
[1770477745056,0.34346421,2048.3,2047.0,0.05414452]
[1770477745057,1.22062598,2048.2,2047.0,0.05414452]
[1770477745258,2.21495,2048.6,2047.3,0.05414452]
[1770477745563,2.21495,2048.6,2047.0,0.05414452]
[1770477745564,1.22049978,2048.4,2047.0,0.05414452]
[1770477745768,2.21495,2048.6,2047.0,0.05414452]
[1770477745967,0.00418184,2048.8,2047.3,1.79625915]
[1770477746148,1.22440875,2048.8,2047.4,0.91733346]
[1770477746349,1.22440875,2048.8,2047.4,2.1383483]
[1770477746350,2.21495,2048.7,2047.4,2.1383483]
[1770477746655,2.21495,2048.7,2047.4,1.22105853]
[1770477746948,2.21495,2048.7,2046.7,4.94003893]
[1770477746949,2.21495,2048.5,2047.1,1.22119677]
[1770477747281,2.21495,2048.5,2047.2,1.22113835]
[1770477748188,2.21495,2048.5,2047.4,1.22105543]
[1770477748472,3.43541475,2048.4,2046.6,1.22153816]
[1770477748676,3.43541475,2048.4,2046.7,0.61619515]
[1770477749610,2.21495,2048.3,2046.7,0.61619515]
[1770477750380,3.43553392,2048.2,2046.8,1.2214188]
[1770477750579,2.21495,2048.2,2046.8,1.27556332]
[1770477750896,1.2205582,2048.3,2046.9,0.67774337]
[1770477751687,2.21495,2048.5,2046.9,0.67774337]
[1770477752654,1.22046475,2048.4,2047.0,1.22129946]
[1770477753957,3.43541475,2048.4,2047.0,1.22129946]
[1770477754604,1.22046475,2048.4,2047.0,1.22129946]
[1770477754891,0.00418184,2048.8,2047.6,0.05414452]
[1770477755382,0.00418184,2048.8,2047.9,0.05414452]
[1770477755603,0.00418184,2048.8,2048.2,0.05414452]
[1770477755881,7.43122001,2050.1,2048.6,7.37707549]
[1770477755882,2.21495,2050.1,2048.6,7.37707549]
[1770477756092,0.2549574,2050.3,2049.1,0.05414452]
[1770477756265,2.10078213,2050.3,2048.8,0.05414452]
[1770477756687,2.10078213,2050.3,2048.9,0.05414452]
[1770477756989,3.32012236,2050.3,2049.0,1.22010736]
[1770477757168,3.32012236,2050.3,2049.1,0.61005368]
[1770477757365,3.32012117,2050.3,2049.1,0.61005368]
[1770477757579,2.10078213,2050.3,2049.1,0.61005368]
[1770477758086,2.10078213,2050.3,2049.0,1.27425188]
[1770477758087,2.10078213,2050.2,2048.9,1.22014942]
[1770477758395,0.002,2049.3,2048.9,1.22016264]
[1770477758563,2.10078213,2050.2,2048.9,1.22016264]
[1770477758564,3.57481711,2050.7,2049.1,0.05414452]
[1770477758763,2.35568693,2050.7,2049.5,1.2198097]
[1770477758968,2.35568693,2050.7,2049.4,1.21986292]
[1770477758969,2.10078213,2050.6,2049.4,1.21986292]
[1770477759186,0.3319913,2050.5,2049.4,1.21986292]
[1770477759354,0.32878009,2050.9,2049.8,0.05414452]
[1770477759686,0.32878009,2050.9,2049.5,7.43122001]
[1770477759890,1.21900791,2050.9,2049.4,1.21986292]
[1770477760090,1.21900791,2050.9,2049.6,0.05414452]
[1770477760284,1.21900791,2050.9,2049.4,1.21986292]
[1770477760285,1.21898377,2050.9,2049.4,1.21986292]
[1770477760594,0.8195674,2050.8,2049.5,0.61534844]
[1770477760970,2.03863184,2050.8,2049.6,1.21975019]
[1770477761401,2.10078213,2050.7,2049.1,7.37707549]
[1770477761589,0.8195674,2050.8,2049.6,1.72941585]
[1770477761799,0.1357674,2051.9,2049.5,0.05414452]
[1770477761800,0.1357674,2051.9,2050.8,1.47458374]
[1770477762139,1.21784879,2052.8,2051.3,7.37707549]
[1770477762390,3.31859502,2052.9,2051.4,0.05414452]
[1770477762599,2.10078213,2052.9,2051.4,0.05414452]
[1770477762761,3.31830808,2053.4,2052.0,0.05414452]
[1770477762961,3.31830808,2053.4,2051.4,0.05414452]
[1770477762962,3.31831056,2053.4,2052.1,0.05414452]
[1770477763157,3.31831056,2053.4,2051.8,0.05414452]
[1770477763158,1.21738299,2053.6,2052.2,0.05414452]
[1770477763363,0.63340863,2053.5,2052.5,0.05414452]
[1770477763570,3.56553729,2053.7,2052.2,0.05414452]
[1770477763864,4.86539427,2055.4,2053.6,1.47478269]
[1770477764064,4.86428811,2055.8,2053.5,7.37707549]
[1770477764065,0.68545001,2055.3,2054.2,0.25452066]
[1770477764395,2.53171148,2055.2,2053.6,7.43122001]
[1770477764580,1.2160716,2055.8,2053.6,7.43122001]
[1770477764581,0.43092935,2055.6,2054.0,7.43122001]
[1770477764762,0.43092935,2055.6,2054.1,0.05414452]
[1770477764961,0.43092935,2055.6,2054.0,7.37707549]
[1770477764962,0.43092935,2055.6,2054.5,0.05414452]
[1770477765179,0.43092935,2055.5,2054.0,8.59420485]
[1770477765379,2.10078213,2055.8,2054.1,0.05414452]
[1770477765587,2.47555452,2055.7,2054.0,7.37707549]
[1770477765795,2.10078213,2055.0,2052.5,7.37707549]
[1770477766001,2.10078213,2054.6,2053.0,0.05414452]
[1770477766197,2.10078213,2054.6,2052.2,1.47491279]
[1770477766198,2.10078213,2054.6,2053.2,1.21760217]
[1770477766368,0.43092935,2054.5,2052.9,7.37707549]
[1770477766566,0.43092935,2054.5,2052.4,0.05414452]
[1770477766567,2.10078213,2054.3,2052.4,0.05414452]
[1770477766791,2.10078213,2054.3,2052.5,0.05414452]
[1770477766976,3.74873027,2054.2,2052.8,0.05414452]
[1770477767184,7.37707549,2053.8,2052.0,10.05006686]
[1770477767367,2.10078213,2053.4,2051.4,0.05414452]
[1770477767569,3.47949724,2053.3,2051.6,0.05414452]
[1770477767793,0.43092935,2053.2,2051.6,1.27269813]
[1770477767994,0.43092935,2053.2,2050.7,0.05414452]
[1770477767995,9.47785762,2052.7,2050.7,0.05414452]
[1770477768295,0.43092935,2053.1,2051.6,0.05414452]
[1770477768495,0.77887907,2053.1,2051.9,0.05414452]
[1770477768685,0.77887907,2053.1,2051.8,1.21841534]
[1770477768999,1.21773015,2053.0,2050.9,7.37707549]
[1770477769222,2.53171148,2052.9,2051.3,0.05414452]
[1770477769380,0.43092935,2052.9,2051.6,0.05414452]
[1770477769566,0.43092935,2052.9,2051.3,7.43122001]
[1770477769567,0.43092935,2052.9,2051.4,0.05414452]
[1770477769877,0.43092935,2052.9,2051.1,1.2188459]
[1770477769878,2.10078213,2052.7,2051.1,1.2188459]
[1770477770198,0.94778576,2052.6,2051.2,0.6064485]
[1770477770489,0.94778576,2052.6,2051.4,0.05414452]
[1770477770490,0.43092935,2052.6,2051.4,0.05414452]
[1770477770663,0.43092935,2052.6,2051.7,0.05414452]
[1770477770869,0.002,2052.9,2052.0,0.05414452]
[1770477771099,0.43092935,2052.8,2052.0,1.27242181]
[1770477771394,0.43092935,2052.8,2052.3,0.05414452]
[1770477771591,0.002,2052.9,2052.3,0.05414452]
[1770477771793,0.43092935,2052.8,2052.1,0.05414452]
[1770477772291,0.43092935,2052.7,2052.1,0.05414452]
[1770477772672,0.43092935,2052.7,2051.7,7.37707549]
[1770477772673,0.43092935,2052.6,2051.1,12.30649297]
[1770477772872,0.43092935,2052.8,2051.8,1.27257485]
[1770477773174,0.43092935,2052.8,2052.0,0.05414452]
[1770477773508,0.002,2052.9,2052.3,0.05414452]
[1770477773675,0.43292935,2052.9,2052.0,0.05414452]
[1770477774293,1.65072664,2052.9,2051.2,0.6064485]
[1770477774505,2.10078213,2052.8,2051.2,0.6064485]
[1770477774793,2.10078213,2052.8,2051.1,0.05414452]
[1770477774983,2.53171148,2052.7,2051.1,1.27298365]
[1770477775299,1.21796745,2052.6,2051.1,1.27296544]
[1770477775468,1.6488968,2052.6,2051.0,0.05414452]
[1770477775668,2.96293701,2052.5,2051.0,0.61492185]
[1770477775919,2.10078213,2052.4,2050.9,0.05414452]
[1770477776081,2.53171148,2052.4,2051.2,0.05414452]
[1770477776285,2.53171148,2052.4,2050.6,0.05414452]
[1770477776487,2.53171148,2052.4,2050.6,1.27326117]
[1770477776688,2.53171148,2052.4,2050.7,1.21907134]
[1770477776882,0.33938664,2052.3,2050.9,0.05414452]
[1770477777088,1.21820485,2052.2,2051.0,1.27302058]
[1770477777308,1.21820485,2052.2,2051.0,0.05414452]
[1770477777505,1.21784879,2052.8,2051.4,0.05414452]
[1770477777706,0.43092935,2052.7,2052.0,0.05414452]
[1770477777914,0.43092935,2052.7,2051.7,0.05414452]
[1770477778116,0.43092935,2052.7,2051.1,1.21885817]
[1770477778117,0.43092935,2052.6,2051.1,1.21885817]
[1770477778319,0.002,2052.9,2051.1,1.21885817]
[1770477778320,0.43092935,2052.8,2051.5,0.05414452]
[1770477778614,0.43092935,2052.7,2051.3,0.05414452]
[1770477778819,0.43092935,2052.7,2051.3,0.86500782]
[1770477778993,0.43092935,2052.6,2051.2,0.05414452]
[1770477779184,0.43092935,2052.6,2051.3,1.21873933]
[1770477779185,1.21802679,2052.5,2051.3,1.21873933]
[1770477779389,0.43092935,2052.6,2051.8,0.05414452]
[1770477779815,0.43092935,2052.6,2051.6,0.05414452]
[1770477780130,0.43092935,2052.6,2051.9,0.05414452]
[1770477780335,0.43092935,2052.6,2052.2,0.05414452]
[1770477780500,0.43092935,2052.6,2051.9,0.05414452]
[1770477780685,0.43092935,2052.6,2044.5,0.201]
[1770477780686,1.64890737,2052.6,2051.2,1.2187875]
[1770477780885,1.08300707,2052.5,2051.0,4.87545698]
[1770477781113,1.21808614,2052.4,2051.2,1.27291426]
[1770477781314,3.31886827,2052.4,2050.8,1.21898555]
[1770477781526,2.53171148,2052.3,2050.4,0.05414452]
[1770477781724,0.43092935,2052.3,2051.2,1.2729205]
[1770477781939,0.43092935,2052.2,2050.8,0.05414452]
[1770477782225,0.43092935,2052.2,2050.5,1.21917444]
[1770477782408,2.53171148,2052.1,2050.3,1.21929729]
[1770477782591,2.53171148,2052.1,2050.7,0.05414452]
[1770477782918,2.10078213,2051.8,2049.9,7.37707549]
[1770477783119,1.21856112,2051.6,2050.4,0.05414452]
[1770477783319,2.10078213,2051.5,2049.8,1.21960927]
[1770477783617,2.53171148,2051.5,2049.9,0.05414452]
[1770477783918,2.53171148,2051.5,2050.8,0.05414452]
[1770477783919,0.43092935,2051.5,2050.8,0.05414452]
[1770477784219,0.002,2052.5,2051.1,0.05414452]
[1770477784419,1.22004662,2052.5,2051.4,7.43122001]
[1770477784717,1.22004662,2052.5,2051.5,0.743122]
[1770477784907,0.002,2052.5,2051.6,0.05414452]
[1770477785105,0.002,2052.5,2051.7,1.21850173]
[1770477785317,0.002,2052.5,2051.4,0.05414452]
[1770477785497,0.002,2052.5,2051.7,0.05414452]
[1770477786116,0.002,2052.5,2051.6,1.21851656]
[1770477786319,0.002,2052.5,2051.7,0.05414452]
[1770477786524,0.002,2052.5,2051.7,0.66883524]
[1770477786816,0.002,2052.5,2051.9,0.05414452]
[1770477787002,0.002,2052.5,2051.8,0.05414452]
[1770477787398,0.002,2052.5,2051.8,1.21844234]
[1770477788422,0.002,2052.5,2052.0,0.05414452]
[1770477788621,0.002,2052.5,2051.8,1.21844234]
[1770477788622,1.2174066,2053.6,2052.4,0.05414452]
[1770477788814,1.2174066,2053.6,2052.4,0.743122]
[1770477789017,1.2174066,2053.6,2052.0,0.05414452]
[1770477789321,3.2736041,2054.2,2053.0,1.21773015]
[1770477789521,3.2236041,2054.2,2052.8,1.27198177]
[1770477789826,3.2236041,2054.2,2052.9,0.05414452]
[1770477790350,2.05658531,2054.1,2052.4,1.27219785]